[Event "106th British-ch Major 2019"]
[Site "Torquay"]
[Date "2019.07.29"]
[Round "3.21"]
[White "Mueller, Jens"]
[Black "Metcalfe, Charlie P"]
[Result "0-1"]
[ECO "B13"]
[WhiteElo "1965"]
[BlackElo "1739"]
[Annotator "NA"]
[PlyCount "58"]
[EventDate "2019.07.27"]
[EventType "swiss"]
[EventCountry "GBR"]
[SourceTitle "playchess.com"]
[Source "ChessBase"]
[SourceQuality "1"]
[TimeControl "40/5400+30:1800+30"]

1. d4 {[%emt 0:00:00]} d5 {[%emt 0:00:00]} 2. Bf4 {[%emt 0:00:00]} c5 {[%emt 0:00:00]} 3. e3 {[%emt 0:00:02]} Nc6 {[%emt 0:00:00]} 4. Nc3 {[%emt 0:00:12]} cxd4 {[%emt 0:00:00]} 5. exd4 {[%emt 0:00:10]} Bf5 {[%emt 0:00:06]} 6. a3 {[%emt 0:01:43]} e6 {[%emt 0:00:12]} 7. g4 {[%emt 0:05:27]} Bg6 {[%emt 0:01:11]} 8. h4 {[%emt 0:01:16]} h5 {[%emt 0:06:36]} 9. g5 {[%emt 0:11:20]} Bd6 {[%emt 0:02:19]} 10. Be3 {[%emt 0:00:41]} Rc8 {[%emt 0:03:27]} 11. Bd3 {[%emt 0:03:27]} Nge7 {[%emt 0:00:50]} 12. Nge2 {[%emt 0:01:59]} Nf5 {[%emt 0:02:00]} 13. Qd2 {[%emt 0:09:57]} O-O {[%emt 0:09:26]} 14. Nd1 {[%emt 0:15:13]} e5 {[%emt 0:17:38]} 15. c3 {[%emt 0:00:19]} Na5 {[%emt 0:06:28]} 16. Nc1 {[%emt 0:06:15]} exd4 {[%emt 0:07:18]} 17. cxd4 {[%emt 0:00:42]} Rxc1 {[%emt 0:04:16]} 18. Rxc1 {[%emt 0:03:04]} Nxe3 {[%emt 0:06:48]} 19. Nxe3 {[%emt 0:00:40]} Nb3 {[%emt 0:00:08]} 20. Qc3 {[%emt 0:00:29]} Nxc1 {[%emt 0:00:58]} 21. Bxg6 {[%emt 0:00:24]} Na2 {[%emt 0:00:40]} 22. Qb3 {[%emt 0:02:30]} Qa5+ {[%emt 0:01:57]} 23. Kf1 {[%emt 0:00:14]} fxg6 {[%emt 0:03:33]} 24. Kg2 {[%emt 0:08:22]} Qd2 {[%emt 0:07:43]} 25. Rf1 {[%emt 0:01:18]} Qxd4 {[%emt 0:00:37]} 26. Qxa2 {[%emt 0:01:11]} Qf4 {[%emt 0:00:52]} 27. Qxd5+ {[%emt 0:03:14]} Kh7 {[%emt 0:00:12]} 28. Rd1 {[%emt 0:01:06]} Qh2+ {[%emt 0:00:17]} 29. Kf1 {[%emt 0:00:10]} Qxf2# {[%emt 0:00:02]} 0-1

[Event "106th British-ch Major 2019"]
[Site "Torquay"]
[Date "2019.07.29"]
[Round "3.22"]
[White "Lim, Mark"]
[Black "Rushbrooke, Remy"]
[Result "0-1"]
[ECO "A10"]
[WhiteElo "1822"]
[BlackElo "1963"]
[Annotator "NA"]
[PlyCount "74"]
[EventDate "2019.07.27"]
[EventType "swiss"]
[EventCountry "GBR"]
[SourceTitle "playchess.com"]
[Source "ChessBase"]
[SourceQuality "1"]
[TimeControl "40/5400+30:1800+30"]

1. Nf3 {[%emt 0:00:00]} f5 {[%emt 0:00:27]} 2. c4 {[%emt 0:00:00]} Nf6 {[%emt 0:00:05]} 3. e3 {[%emt 0:00:00]} g6 {[%emt 0:00:06]} 4. b4 {[%emt 0:00:00]} Bg7 {[%emt 0:00:04]} 5. Bb2 {[%emt 0:00:00]} O-O {[%emt 0:00:23]} 6. Be2 {[%emt 0:00:00]} d6 {[%emt 0:00:08]} 7. d4 {[%emt 0:00:00]} c6 {[%emt 0:01:35]} 8. O-O {[%emt 0:01:16]} Qe8 {[%emt 0:00:09]} 9. Qb3 {[%emt 0:03:54]} h6 {[%emt 0:01:30]} 10. Nc3 {[%emt 0:03:18]} g5 {[%emt 0:03:27]} 11. d5 {[%emt 0:04:40]} e5 {[%emt 0:13:34]} 12. dxe6 {[%emt 0:04:14]} Bxe6 {[%emt 0:00:27]} 13. Nd4 {[%emt 0:01:28]} Bc8 {[%emt 0:02:36]} 14. Rfd1 {[%emt 0:03:53]} Ng4 {[%emt 0:04:09]} 15. Rd3 {[%emt 0:25:19]} Ne5 {[%emt 0:09:03]} 16. Rd2 {[%emt 0:02:05]} g4 {[%emt 0:03:06]} 17. Rad1 {[%emt 0:03:31]} Qg6 {[%emt 0:06:04]} 18. Bf1 {[%emt 0:03:25]} Nf3+ {[%emt 0:11:30]} 19. gxf3 {[%emt 0:03:25]} gxf3+ {[%emt 0:00:03]} 20. Kh1 {[%emt 0:00:09]} Qh5 {[%emt 0:00:03]} 21. c5+ {[%emt 0:08:40]} Kh8 {[%emt 0:00:07]} 22. cxd6 {[%emt 0:02:50]} Be5 {[%emt 0:00:20]} 23. Nxf3 {[%emt 0:00:12]} Qxf3+ {[%emt 0:00:05]} 24. Bg2 {[%emt 0:01:01]} Qh5 {[%emt 0:04:05]} 25. f4 {[%emt 0:01:21]} Bf6 {[%emt 0:00:04]} 26. Na4 {[%emt 0:04:17]} Nd7 {[%emt 0:03:23]} 27. Nc5 {[%emt 0:02:04]} Nxc5 {[%emt 0:01:58]} 28. bxc5 {[%emt 0:00:39]} Bd7 {[%emt 0:03:33]} 29. Qxb7 {[%emt 0:01:34]} Bxb2 {[%emt 0:00:20]} 30. Qxb2+ {[%emt 0:03:25]} Kh7 {[%emt 0:00:04]} 31. Qb7 {[%emt 0:01:30]} Rad8 {[%emt 0:00:05]} 32. Bxc6 {[%emt 0:02:31]} Rf7 {[%emt 0:00:02]} 33. Bxd7 {[%emt 0:01:07]} Rdxd7 {[%emt 0:00:03]} 34. Qd5 {[%emt 0:01:16]} Rg7 {[%emt 0:00:04]} 35. c6 {[%emt 0:01:37]} Rxd6 {[%emt 0:00:07]} 36. Qxf5+ {[%emt 0:06:26]} Qxf5 {[%emt 0:00:05]} 37. Rxd6 {[%emt 0:00:08]} Qe4# {[%emt 0:00:05]} 0-1

[Event "106th British-ch Major 2019"]
[Site "Torquay"]
[Date "2019.07.29"]
[Round "3.23"]
[White "Merriman, James"]
[Black "Hosdurga, Chirag"]
[Result "1/2-1/2"]
[ECO "E70"]
[WhiteElo "1808"]
[BlackElo "1926"]
[Annotator "NA"]
[PlyCount "73"]
[EventDate "2019.07.27"]
[EventType "swiss"]
[EventCountry "GBR"]
[SourceTitle "playchess.com"]
[Source "ChessBase"]
[SourceQuality "1"]
[TimeControl "40/5400+30:1800+30"]

1. d4 {[%emt 0:00:33]} Nf6 {[%emt 0:00:00]} 2. c4 {[%emt 0:01:44]} g6 {[%emt 0:00:00]} 3. Nc3 {[%emt 0:00:04]} Bg7 {[%emt 0:00:00]} 4. e4 {[%emt 0:00:08]} d6 {[%emt 0:00:02]} 5. Nge2 {[%emt 0:00:08]} O-O {[%emt 0:00:09]} 6. Ng3 {[%emt 0:00:14]} e5 {[%emt 0:00:08]} 7. d5 {[%emt 0:00:05]} a5 {[%emt 0:00:06]} 8. Be2 {[%emt 0:00:10]} Na6 {[%emt 0:00:08]} 9. h4 {[%emt 0:00:14]} h5 {[%emt 0:00:04]} 10. Bg5 {[%emt 0:00:07]} Qe8 {[%emt 0:00:04]} 11. Qd2 {[%emt 0:02:01]} Bd7 {[%emt 0:00:13]} 12. O-O-O {[%emt 0:02:20]} Ng4 {[%emt 0:00:19]} 13. Bxg4 {[%emt 0:04:39]} Bxg4 {[%emt 0:00:12]} 14. f3 {[%emt 0:00:14]} Bd7 {[%emt 0:00:11]} 15. Bh6 {[%emt 0:02:54]} Qe7 {[%emt 0:11:53]} 16. Rdg1 {[%emt 0:03:51]} Nc5 {[%emt 0:04:12]} 17. Nf1 {[%emt 0:03:41]} Ra6 {[%emt 0:14:28]} 18. g4 {[%emt 0:06:41]} Bxh6 {[%emt 0:07:20]} 19. Qxh6 {[%emt 0:00:26]} hxg4 {[%emt 0:00:43]} 20. fxg4 {[%emt 0:01:21]} Nd3+ {[%emt 0:10:16]} 21. Kc2 {[%emt 0:06:20]} Nf2 {[%emt 0:14:03]} 22. Ne3 {[%emt 0:02:36]} Nxh1 {[%emt 0:11:35]} 23. Nf5 {[%emt 0:00:21]} Bxf5 {[%emt 0:06:40]} 24. gxf5 {[%emt 0:00:16]} Qf6 {[%emt 0:00:30]} 25. Rxh1 {[%emt 0:10:14]} Qg7 {[%emt 0:02:08]} 26. Qe3 {[%emt 0:00:30]} Kh7 {[%emt 0:01:19]} 27. Qf3 {[%emt 0:09:33]} f6 {[%emt 0:06:45]} 28. Rg1 {[%emt 0:02:57]} g5 {[%emt 0:00:20]} 29. hxg5 {[%emt 0:01:14]} fxg5 {[%emt 0:00:09]} 30. Rh1+ {[%emt 0:01:08]} Kg8 {[%emt 0:00:04]} 31. Qh5 {[%emt 0:00:15]} Rf6 {[%emt 0:02:29]} 32. Nd1 {[%emt 0:01:37]} Ra8 {[%emt 0:03:21]} 33. Ne3 {[%emt 0:00:28]} Rf7 {[%emt 0:00:44]} 34. Ng4 {[%emt 0:00:26]} Kf8 {[%emt 0:03:10]} 35. Qh8+ {[%emt 0:02:48]} Qg8 {[%emt 0:00:04]} 36. Qxg8+ {[%emt 0:00:07]} Kxg8 {[%emt 0:00:03]} 37. Nh6+ {[%emt 0:00:40]} 1/2-1/2

[Event "106th British-ch Major 2019"]
[Site "Torquay"]
[Date "2019.07.29"]
[Round "3.24"]
[White "Pink, Joshua"]
[Black "Renshaw, Lucas"]
[Result "1-0"]
[ECO "A03"]
[WhiteElo "1907"]
[BlackElo "1596"]
[Annotator "NA"]
[PlyCount "132"]
[EventDate "2019.07.27"]
[EventType "swiss"]
[EventCountry "GBR"]
[SourceTitle "playchess.com"]
[Source "ChessBase"]
[SourceQuality "1"]
[TimeControl "40/5400+30:1800+30"]

1. f4 {[%emt 0:00:05]} d5 {[%emt 0:00:19]} 2. Nf3 {[%emt 0:00:07]} c5 {[%emt 0:00:31]} 3. e3 {[%emt 0:00:49]} Nc6 {[%emt 0:00:36]} 4. Be2 {[%emt 0:00:10]} Nf6 {[%emt 0:01:30]} 5. d3 {[%emt 0:00:08]} e6 {[%emt 0:05:16]} 6. O-O {[%emt 0:00:46]} Bd6 {[%emt 0:03:02]} 7. Nc3 {[%emt 0:04:13]} e5 {[%emt 0:03:09]} 8. fxe5 {[%emt 0:04:48]} Nxe5 {[%emt 0:00:13]} 9. Nxe5 {[%emt 0:01:45]} Bxe5 {[%emt 0:00:03]} 10. d4 {[%emt 0:00:57]} cxd4 {[%emt 0:06:15]} 11. exd4 {[%emt 0:00:29]} Qb6 {[%emt 0:02:22]} 12. Bb5+ {[%emt 0:03:03]} Bd7 {[%emt 0:03:09]} 13. Re1 {[%emt 0:00:30]} O-O-O {[%emt 0:05:27]} 14. Rxe5 {[%emt 0:03:46]} Bxb5 {[%emt 0:00:56]} 15. Bg5 {[%emt 0:02:40]} Bc6 {[%emt 0:05:45]} 16. Rb1 {[%emt 0:03:46]} Rhe8 {[%emt 0:04:04]} 17. Rxe8 {[%emt 0:00:14]} Rxe8 {[%emt 0:00:08]} 18. Bxf6 {[%emt 0:00:07]} gxf6 {[%emt 0:00:05]} 19. Qd3 {[%emt 0:00:22]} Re6 {[%emt 0:06:36]} 20. b4 {[%emt 0:01:13]} Rd6 {[%emt 0:07:25]} 21. a4 {[%emt 0:01:12]} Bd7 {[%emt 0:03:16]} 22. a5 {[%emt 0:00:58]} Qc7 {[%emt 0:02:11]} 23. a6 {[%emt 0:05:59]} Qc4 {[%emt 0:03:17]} 24. axb7+ {[%emt 0:01:54]} Kxb7 {[%emt 0:00:38]} 25. Qxc4 {[%emt 0:00:09]} dxc4 {[%emt 0:00:05]} 26. Rd1 {[%emt 0:00:52]} Bf5 {[%emt 0:02:28]} 27. Rd2 {[%emt 0:00:32]} Rb6 {[%emt 0:08:36]} 28. Nd5 {[%emt 0:03:26]} Rb5 {[%emt 0:02:42]} 29. Ne3 {[%emt 0:00:09]} c3 {[%emt 0:01:50]} 30. Rf2 {[%emt 0:00:57]} Bg6 {[%emt 0:05:02]} 31. Rxf6 {[%emt 0:07:47]} Rxb4 {[%emt 0:01:50]} 32. d5 {[%emt 0:00:10]} Rb6 {[%emt 0:07:13]} 33. d6 {[%emt 0:01:23]} Rb2 {[%emt 0:04:34]} 34. Nd5 {[%emt 0:12:47]} Kc6 {[%emt 0:01:43]} 35. Nxc3 {[%emt 0:04:28]} Rxc2 {[%emt 0:00:39]} 36. Nd5 {[%emt 0:02:55]} Rd2 {[%emt 0:02:35]} 37. Ne7+ {[%emt 0:00:46]} Kd7 {[%emt 0:00:35]} 38. Nxg6 {[%emt 0:00:33]} fxg6 {[%emt 0:00:52]} 39. Rf7+ {[%emt 0:00:07]} Kxd6 {[%emt 0:00:08]} 40. Rxa7 {[%emt 0:00:05]} Rd1+ {[%emt 0:02:15]} 41. Kf2 {[%emt 0:30:10]} Rd3 {[%emt 0:05:37]} 42. Rxh7 {[%emt 0:00:00]} Ke6 {[%emt 0:01:01]} 43. Rh4 {[%emt 0:00:00]} Kf5 {[%emt 0:01:35]} 44. Rb4 {[%emt 0:00:00]} Ra3 {[%emt 0:01:57]} 45. h3 {[%emt 0:00:00]} Rc3 {[%emt 0:03:24]} 46. Rb5+ {[%emt 0:00:00]} Ke4 {[%emt 0:03:25]} 47. Rg5 {[%emt 0:00:00]} Rc6 {[%emt 0:01:10]} 48. Kg3 {[%emt 0:00:00]} Rc3+ {[%emt 0:01:47]} 49. Kg4 {[%emt 0:00:00]} Rc6 {[%emt 0:00:11]} 50. Ra5 {[%emt 0:00:00]} Rc2 {[%emt 0:02:20]} 51. g3 {[%emt 0:00:00]} Rc6 {[%emt 0:00:07]} 52. h4 {[%emt 0:00:00]} Rd6 {[%emt 0:01:17]} 53. Kg5 {[%emt 0:00:00]} Rc6 {[%emt 0:00:19]} 54. g4 {[%emt 0:00:00]} Rd6 {[%emt 0:01:05]} 55. h5 {[%emt 0:00:00]} gxh5 {[%emt 0:00:23]} 56. Kxh5 {[%emt 0:00:00]} Rd1 {[%emt 0:00:59]} 57. g5 {[%emt 0:00:00]} Rh1+ {[%emt 0:00:15]} 58. Kg6 {[%emt 0:00:00]} Rg1 {[%emt 0:01:07]} 59. Kf6 {[%emt 0:00:00]} Rf1+ {[%emt 0:01:00]} 60. Kg7 {[%emt 0:00:00]} Rg1 {[%emt 0:00:42]} 61. g6 {[%emt 0:00:00]} Rg3 {[%emt 0:00:22]} 62. Kf7 {[%emt 0:00:00]} Rf3+ {[%emt 0:00:07]} 63. Kg8 {[%emt 0:00:00]} Rg3 {[%emt 0:00:11]} 64. g7 {[%emt 0:00:00]} Rg1 {[%emt 0:00:19]} 65. Kh7 {[%emt 0:00:00]} Rh1+ {[%emt 0:00:08]} 66. Kg6 {[%emt 0:00:00]} Rb1 {[%emt 0:00:47]} 1-0

[Event "106th British-ch Major 2019"]
[Site "Torquay"]
[Date "2019.07.29"]
[Round "3.25"]
[White "Lovell, William Pm"]
[Black "Nayak, Raghav"]
[Result "0-1"]
[ECO "A25"]
[WhiteElo "1777"]
[BlackElo "1906"]
[Annotator "NA"]
[PlyCount "74"]
[EventDate "2019.07.27"]
[EventType "swiss"]
[EventCountry "GBR"]
[SourceTitle "playchess.com"]
[Source "ChessBase"]
[SourceQuality "1"]
[TimeControl "40/5400+30:1800+30"]

1. c4 {[%emt 0:00:00]} e5 {[%emt 0:00:00]} 2. g3 {[%emt 0:00:00]} Nc6 {[%emt 0:00:04]} 3. Bg2 {[%emt 0:00:00]} f5 {[%emt 0:00:06]} 4. Nc3 {[%emt 0:00:00]} Nf6 {[%emt 0:00:09]} 5. d3 {[%emt 0:00:01]} Bb4 {[%emt 0:00:50]} 6. Bd2 {[%emt 0:00:09]} Bc5 {[%emt 0:00:07]} 7. e3 {[%emt 0:02:28]} O-O {[%emt 0:01:53]} 8. Nge2 {[%emt 0:00:18]} Qe8 {[%emt 0:00:52]} 9. O-O {[%emt 0:00:22]} d6 {[%emt 0:00:19]} 10. a3 {[%emt 0:10:47]} f4 {[%emt 0:03:29]} 11. exf4 {[%emt 0:06:59]} Qh5 {[%emt 0:00:21]} 12. Ne4 {[%emt 0:02:54]} Nxe4 {[%emt 0:06:09]} 13. dxe4 {[%emt 0:00:48]} Bg4 {[%emt 0:00:14]} 14. Re1 {[%emt 0:01:20]} Nd4 {[%emt 0:00:39]} 15. h3 Bxe2 {[%emt 0:00:30]} 16. g4 Bxd1 {[%emt 0:00:30]} 17. gxh5 Nf3+ {[%emt 0:00:30]} 18. Bxf3 Bxf3 {[%emt 0:00:30]} 19. fxe5 Bxh5 {[%emt 0:00:30]} 20. Be3 Bxe3 {[%emt 0:00:30]} 21. Rxe3 dxe5 {[%emt 0:00:30]} 22. Rd3 Rad8 {[%emt 0:00:30]} 23. Rd5 Rfe8 {[%emt 0:00:30]} 24. Kg2 c6 {[%emt 0:00:30]} 25. Rxd8 Rxd8 {[%emt 0:00:30]} 26. Rc1 Rd2 {[%emt 0:00:30]} 27. b4 Kf7 {[%emt 0:00:30]} 28. Rc3 Ke6 {[%emt 0:00:30]} 29. Kg3 Be2 {[%emt 0:00:30]} 30. c5 Rd3+ {[%emt 0:00:30]} 31. Rxd3 Bxd3 {[%emt 0:00:30]} 32. Kf3 h5 {[%emt 0:00:30]} 33. h4 Kf6 {[%emt 0:00:30]} 34. Ke3 Bb1 {[%emt 0:00:30]} 35. f4 g6 {[%emt 0:00:30]} 36. Kf3 Bc2 {[%emt 0:00:30]} 37. Ke3 Bd1 {[%emt 0:00:30]} 0-1

[Event "106th British-ch Major 2019"]
[Site "Torquay"]
[Date "2019.07.29"]
[Round "3.26"]
[White "Salmons, Calum"]
[Black "Liu, Jack"]
[Result "1/2-1/2"]
[ECO "B44"]
[WhiteElo "1898"]
[BlackElo "1259"]
[Annotator "NA"]
[PlyCount "95"]
[EventDate "2019.07.27"]
[EventType "swiss"]
[EventCountry "GBR"]
[SourceTitle "playchess.com"]
[Source "ChessBase"]
[SourceQuality "1"]
[TimeControl "40/5400+30:1800+30"]

1. e4 {[%emt 0:00:00]} e6 {[%emt 0:00:00]} 2. Nf3 {[%emt 0:00:00]} c5 {[%emt 0:00:00]} 3. d4 {[%emt 0:00:48]} cxd4 {[%emt 0:00:00]} 4. Nxd4 {[%emt 0:00:15]} Nc6 {[%emt 0:00:05]} 5. Be3 {[%emt 0:00:39]} Nf6 {[%emt 0:00:18]} 6. f3 {[%emt 0:00:58]} Be7 {[%emt 0:02:12]} 7. Be2 {[%emt 0:02:10]} O-O {[%emt 0:02:17]} 8. O-O {[%emt 0:01:24]} d5 {[%emt 0:04:35]} 9. Nxc6 {[%emt 0:01:29]} bxc6 {[%emt 0:00:21]} 10. e5 {[%emt 0:02:28]} Nd7 {[%emt 0:00:24]} 11. f4 {[%emt 0:00:28]} c5 {[%emt 0:03:42]} 12. c3 {[%emt 0:04:57]} f6 {[%emt 0:05:39]} 13. exf6 {[%emt 0:02:55]} Nxf6 {[%emt 0:00:52]} 14. Nd2 {[%emt 0:02:50]} Bd6 {[%emt 0:02:57]} 15. Nb3 {[%emt 0:05:57]} Qc7 {[%emt 0:02:13]} 16. Bg4 {[%emt 0:04:10]} Ne4 {[%emt 0:02:17]} 17. g3 Qe7 {[%emt 0:03:11]} 18. f5 {[%emt 0:11:51]} Bd7 {[%emt 0:11:10]} 19. Bf4 {[%emt 0:11:38]} Rac8 {[%emt 0:03:04]} 20. fxe6 {[%emt 0:09:10]} Bxe6 {[%emt 0:00:38]} 21. Bxe6+ {[%emt 0:01:33]} Qxe6 {[%emt 0:00:11]} 22. Bxd6 {[%emt 0:01:01]} Qxd6 {[%emt 0:01:24]} 23. Qe2 {[%emt 0:06:26]} Rce8 {[%emt 0:04:12]} 24. Rxf8+ {[%emt 0:01:34]} Rxf8 {[%emt 0:00:18]} 25. Rd1 {[%emt 0:05:09]} Nf6 {[%emt 0:04:32]} 26. Qe3 {[%emt 0:07:52]} Rc8 {[%emt 0:02:36]} 27. Re1 {[%emt 0:00:31]} Ne4 {[%emt 0:02:31]} 28. Rd1 {[%emt 0:01:42]} Nf6 {[%emt 0:00:15]} 29. Re1 {[%emt 0:03:29]} Ne4 {[%emt 0:00:23]} 30. Nc1 {[%emt 0:00:17]} Rb8 {[%emt 0:03:08]} 31. Re2 {[%emt 0:00:28]} Rf8 {[%emt 0:01:58]} 32. Nd3 {[%emt 0:01:17]} Qf6 {[%emt 0:03:01]} 33. Re1 {[%emt 0:00:45]} Qd6 {[%emt 0:03:11]} 34. Nf4 {[%emt 0:00:27]} Re8 {[%emt 0:00:49]} 35. Qf3 {[%emt 0:02:45]} Rf8 {[%emt 0:05:42]} 36. Qd3 {[%emt 0:01:01]} Nf6 {[%emt 0:09:08]} 37. Re6 {[%emt 0:00:13]} Qd7 {[%emt 0:00:24]} 38. Qa6 {[%emt 0:02:21]} Re8 {[%emt 0:03:17]} 39. Rxe8+ {[%emt 0:04:33]} Qxe8 {[%emt 0:00:32]} 40. Qe6+ {[%emt 0:00:17]} Qxe6 {[%emt 0:00:09]} 41. Nxe6 {[%emt 0:30:07]} c4 {[%emt 0:30:12]} 42. h3 {[%emt 0:00:00]} Kf7 {[%emt 0:00:00]} 43. Nc7 {[%emt 0:00:00]} Ke7 {[%emt 0:00:00]} 44. Kf2 {[%emt 0:00:00]} Kd7 {[%emt 0:00:00]} 45. Nb5 {[%emt 0:00:00]} a6 {[%emt 0:00:00]} 46. Nd4 {[%emt 0:00:00]} Ne4+ {[%emt 0:00:00]} 47. Kf3 {[%emt 0:00:00]} Nc5 {[%emt 0:00:00]} 48. b3 {[%emt 0:07:15]} 1/2-1/2

[Event "106th British-ch Major 2019"]
[Site "Torquay"]
[Date "2019.07.29"]
[Round "3.27"]
[White "Robertson, Jim"]
[Black "Morgan, Jamie"]
[Result "1-0"]
[ECO "A45"]
[WhiteElo "1580"]
[BlackElo "1894"]
[Annotator "NA"]
[PlyCount "69"]
[EventDate "2019.07.27"]
[EventType "swiss"]
[EventCountry "GBR"]
[SourceTitle "playchess.com"]
[Source "ChessBase"]
[SourceQuality "1"]
[TimeControl "40/5400+30:1800+30"]

1. d4 {[%emt 0:00:00]} Nf6 {[%emt 0:00:00]} 2. e3 {[%emt 0:00:00]} g6 {[%emt 0:00:22]} 3. f4 {[%emt 0:00:01]} Bg7 {[%emt 0:00:27]} 4. Nf3 {[%emt 0:00:09]} d6 {[%emt 0:01:07]} 5. Bc4 {[%emt 0:00:40]} O-O {[%emt 0:01:01]} 6. c3 {[%emt 0:00:45]} Nc6 {[%emt 0:02:56]} 7. O-O {[%emt 0:00:22]} e5 {[%emt 0:10:19]} 8. dxe5 {[%emt 0:00:24]} dxe5 {[%emt 0:00:31]} 9. fxe5 {[%emt 0:00:23]} Qxd1 {[%emt 0:02:09]} 10. Rxd1 {[%emt 0:00:06]} Ng4 {[%emt 0:04:31]} 11. e4 {[%emt 0:06:56]} Ncxe5 {[%emt 0:08:01]} 12. Nxe5 {[%emt 0:00:52]} Nxe5 {[%emt 0:00:53]} 13. Be2 {[%emt 0:00:13]} Bg4 {[%emt 0:01:43]} 14. Bxg4 {[%emt 0:01:11]} Nxg4 {[%emt 0:00:07]} 15. Bf4 {[%emt 0:02:31]} Rad8 {[%emt 0:13:31]} 16. Na3 {[%emt 0:01:30]} Be5 {[%emt 0:14:56]} 17. Bxe5 {[%emt 0:04:32]} Nxe5 {[%emt 0:02:28]} 18. Rd5 {[%emt 0:00:23]} Nd3 {[%emt 0:02:18]} 19. Rd1 {[%emt 0:12:21]} Rxd5 {[%emt 0:00:29]} 20. exd5 {[%emt 0:00:08]} Nxb2 {[%emt 0:01:58]} 21. Rb1 {[%emt 0:01:21]} Nd3 {[%emt 0:01:57]} 22. Rxb7 {[%emt 0:04:00]} Re8 {[%emt 0:00:18]} 23. h3 {[%emt 0:04:58]} Re2 {[%emt 0:00:25]} 24. Rxc7 {[%emt 0:00:53]} Nf4 {[%emt 0:06:10]} 25. c4 {[%emt 0:13:39]} Rxg2+ {[%emt 0:01:09]} 26. Kf1 {[%emt 0:01:01]} Rxa2 {[%emt 0:01:24]} 27. Rxa7 {[%emt 0:00:32]} Kg7 {[%emt 0:03:47]} 28. Nb5 {[%emt 0:01:12]} Rxa7 {[%emt 0:03:43]} 29. Nxa7 {[%emt 0:00:41]} f5 {[%emt 0:00:31]} 30. Nb5 {[%emt 0:11:19]} Kf6 {[%emt 0:03:04]} 31. d6 {[%emt 0:01:50]} Nxh3 {[%emt 0:01:11]} 32. c5 {[%emt 0:00:51]} Nf4 {[%emt 0:04:38]} 33. c6 {[%emt 0:01:34]} Nd5 {[%emt 0:01:38]} 34. c7 {[%emt 0:01:03]} Nb6 {[%emt 0:00:05]} 35. d7 {[%emt 0:01:05]} 1-0

[Event "106th British-ch Major 2019"]
[Site "Torquay"]
[Date "2019.07.29"]
[Round "3.28"]
[White "Gardiner, Eric D"]
[Black "Sheikh, Anum"]
[Result "1-0"]
[ECO "B22"]
[WhiteElo "1957"]
[BlackElo "1693"]
[Annotator "NA"]
[PlyCount "125"]
[EventDate "2019.07.27"]
[EventType "swiss"]
[EventCountry "GBR"]
[SourceTitle "playchess.com"]
[Source "ChessBase"]
[SourceQuality "1"]
[TimeControl "40/5400+30:1800+30"]

1. e4 {[%emt 0:00:00]} c5 {[%emt 0:05:06]} 2. c3 {[%emt 0:00:00]} d5 {[%emt 0:00:15]} 3. exd5 {[%emt 0:00:00]} Nf6 {[%emt 0:00:20]} 4. d4 {[%emt 0:02:09]} Qxd5 {[%emt 0:00:27]} 5. Nf3 {[%emt 0:00:18]} e6 {[%emt 0:02:17]} 6. Be2 {[%emt 0:00:12]} Nc6 {[%emt 0:00:32]} 7. O-O {[%emt 0:00:15]} Be7 {[%emt 0:00:58]} 8. c4 {[%emt 0:00:26]} Qd7 {[%emt 0:02:29]} 9. dxc5 {[%emt 0:00:58]} Bxc5 {[%emt 0:00:15]} 10. Nc3 {[%emt 0:00:41]} O-O {[%emt 0:00:13]} 11. a3 {[%emt 0:04:27]} Nd4 {[%emt 0:06:36]} 12. Nxd4 {[%emt 0:00:48]} Bxd4 {[%emt 0:00:33]} 13. Nb5 {[%emt 0:06:42]} e5 {[%emt 0:07:30]} 14. Nxd4 {[%emt 0:04:54]} exd4 {[%emt 0:00:29]} 15. b4 {[%emt 0:00:28]} b6 {[%emt 0:05:09]} 16. Bf3 {[%emt 0:11:25]} Bb7 {[%emt 0:10:07]} 17. Bxb7 {[%emt 0:00:32]} Qxb7 {[%emt 0:00:06]} 18. Qxd4 {[%emt 0:00:24]} Rfd8 {[%emt 0:00:29]} 19. Qh4 {[%emt 0:01:17]} Ne4 {[%emt 0:05:15]} 20. Be3 {[%emt 0:02:26]} Rac8 {[%emt 0:00:57]} 21. Rfd1 {[%emt 0:11:20]} f6 {[%emt 0:02:24]} 22. f3 {[%emt 0:09:32]} Nd6 {[%emt 0:03:09]} 23. c5 {[%emt 0:04:17]} Nf5 {[%emt 0:02:40]} 24. Qc4+ {[%emt 0:00:34]} Kh8 {[%emt 0:00:27]} 25. Bf2 {[%emt 0:01:18]} bxc5 {[%emt 0:13:39]} 26. bxc5 {[%emt 0:00:59]} Qc6 {[%emt 0:04:01]} 27. Qc2 {[%emt 0:06:38]} Ne7 {[%emt 0:02:17]} 28. Rxd8+ {[%emt 0:05:44]} Rxd8 {[%emt 0:00:14]} 29. Re1 {[%emt 0:00:28]} Qd7 {[%emt 0:02:01]} 30. Bg3 {[%emt 0:04:17]} Nc6 {[%emt 0:01:11]} 31. Bd6 {[%emt 0:01:20]} Rc8 {[%emt 0:08:53]} 32. Qe4 {[%emt 0:02:24]} h6 {[%emt 0:05:26]} 33. h3 {[%emt 0:00:33]} Qb7 {[%emt 0:02:35]} 34. Rb1 {[%emt 0:01:31]} Qf7 {[%emt 0:01:28]} 35. a4 {[%emt 0:02:32]} f5 {[%emt 0:01:12]} 36. Qd3 {[%emt 0:01:39]} Qd7 {[%emt 0:02:41]} 37. Re1 {[%emt 0:03:05]} Qf7 {[%emt 0:01:16]} 38. Qe3 {[%emt 0:01:31]} Qd5 {[%emt 0:01:48]} 39. Qe6 {[%emt 0:01:38]} Qxe6 {[%emt 0:00:14]} 40. Rxe6 {[%emt 0:00:05]} Kg8 {[%emt 0:01:00]} 41. Kf2 {[%emt 0:34:10]} Kf7 {[%emt 0:30:06]} 42. Re1 {[%emt 0:00:15]} Rd8 {[%emt 0:00:00]} 43. Rb1 {[%emt 0:00:00]} Rd7 {[%emt 0:00:00]} 44. Ke2 {[%emt 0:00:00]} Ke6 {[%emt 0:00:00]} 45. Kd3 {[%emt 0:00:00]} Kd5 {[%emt 0:00:00]} 46. Kc3 {[%emt 0:00:00]} g6 {[%emt 0:00:00]} 47. Rd1+ {[%emt 0:00:00]} Ke6 {[%emt 0:00:00]} 48. Kc4 {[%emt 0:00:00]} Rb7 {[%emt 0:00:00]} 49. Re1+ {[%emt 0:00:00]} Kf7 {[%emt 0:00:00]} 50. Re2 {[%emt 0:00:00]} h5 {[%emt 0:00:00]} 51. f4 {[%emt 0:00:00]} Rb1 {[%emt 0:00:00]} 52. Be5 {[%emt 0:00:00]} Rb7 {[%emt 0:00:00]} 53. Bc3 {[%emt 0:00:00]} Ne7 {[%emt 0:03:36]} 54. Rd2 {[%emt 0:00:00]} Nc8 {[%emt 0:02:25]} 55. Rd8 {[%emt 0:01:49]} Ne7 {[%emt 0:00:34]} 56. Rd6 {[%emt 0:00:20]} Ke8 {[%emt 0:01:30]} 57. c6 {[%emt 0:01:15]} Rc7 {[%emt 0:00:44]} 58. Kc5 {[%emt 0:00:18]} Kf7 {[%emt 0:00:46]} 59. Ba5 {[%emt 0:00:40]} Rc8 {[%emt 0:00:10]} 60. c7 {[%emt 0:00:37]} Ke8 {[%emt 0:00:43]} 61. Rd8+ {[%emt 0:00:57]} Kf7 {[%emt 0:00:05]} 62. Kd6 {[%emt 0:00:47]} Kf6 {[%emt 0:01:02]} 63. Kd7 {[%emt 0:02:46]} 1-0